Cogmind - Beta 12 X1 *** ADVENTURER MODE // 2022.07.14 @ 15:39:26 Player: Salamander Result: Self-destructed Performance ------------- Evolutions (9) 4500 Regions Visited (24) 4800 Robots Destroyed (312) 1560 Value Destroyed (19790) 19790 Prototype IDs (23) 460 Alien Tech Used (2) 400 Bonus (11528) 11528 TOTAL SCORE: 43038 Bonus ------- High Alert Combat Kills 1858 Follower Combat Kills 4629 Entered Garrisons 1600 Used RIF Installer 5000 Friendly Fire -1559 Cogmind --------- Core Integrity 1177/1600 Matter 152/300 Energy 46/100 System Corruption 1% Temperature Cool (0) Movement Hovering (60) Location -1/Access Parts ------- > --- POWER (2) -------- (None) > --- PROPULSION (8) --- Combat Linear Gravjet > --- UTILITY (12) ----- Improved Armor Integrity Analyzer Relay Coupler [Grunt] (39) Relay Coupler [Specialist] (32) Relay Coupler [Heavy] (7) > --- WEAPON (3) ------- Point Singularity Launcher > --- INVENTORY (5) ---- (None) Peak State ------------ > --- POWER ------------ Micro Antimatter Reactor Light Quantum Reactor > --- PROPULSION ------- Antigrav System Improved Antigrav System Antigrav Array Combat Linear Gravjet Combat Linear Gravjet > --- UTILITY ---------- Experimental Heat Sink Experimental Heat Sink Advanced Signal Interpreter Improved Targeting Computer Improved Armor Integrity Analyzer Advanced Reaction Control System Layered Medium Armor Plating Advanced Force Field Relay Coupler [Grunt] Relay Coupler [Specialist] Relay Coupler [Heavy] Improved System Guard > --- WEAPON ----------- Phase Gun Enhanced Quantum Rifle Advanced Remote Datajack > --- INVENTORY -------- Antigrav Array Experimental Heat Sink Layered Medium Armor Plating Point Singularity Launcher [Rating: 160] Favorites ----------- Power Reinforced Fission Core Engine Improved Deuterium Engine Power Core Reinforced Fission Core Reactor Light Antimatter Reactor Propulsion Light Treads Treads Light Treads Leg Flexi-carbon Leg Wheel Centrium Wheel Hover Unit Improved Antigrav System Flight Unit Xenon Bombardment Thruster Utility Huge Storage Unit Device Improved Remote Shield Storage Huge Storage Unit Processor Improved Signal Interpreter Hackware Relay Coupler [Sentry] Protection Improved Light Armor Plating Artifact Phase Redirector Weapon Heavy Linear Accelerator Energy Gun Gamma Rifle Energy Cannon Enhanced Nova Cannon Ballistic Gun Assault Rifle Ballistic Cannon Heavy Linear Accelerator Launcher Scatter Rocket Array Special Weapon Remote Datajack Build | -11 -10 -10 -9 -9 -9 -9 -7 -7 -7 -7 -6 -6 -5 -5 -5 -5 -4 -4 -3 -3 -3 -2 -2 -1 ------- Run | Scr Mat Min Mat Sto Gar Rec Fac Gar Fac Gar Fac Gar Fac Gar Fac Gar Fac Gar Res Qua Gar Res Tes Acc Slots Evolved 18 | . . . 2 . . . 4 . . . 2 . 2 . . . 2 . 2 . . 2 . 2 Power 1 | . . . . . . . . . . . . . . . . . 1 . . . . . . . Propulsion 6 | . . . 1 . . . 1 . . . . . 1 . . . 1 . . . . . . 2 Utility 10 | . . . 1 . . . 2 . . . 2 . 1 . . . . . 2 . . 2 . . Weapon 1 | . . . . . . . 1 . . . . . . . . . . . . . . . . . Parts Attached 285 | 7 4 1 3 10 10 1 19 16 5 6 2 14 14 9 2 5 5 16 7 24 46 36 13 10 Power 24 | 1 . . . 1 . . 2 . . . . 1 . 1 . . 1 2 . 1 8 4 1 1 Engine 3 | 1 . . . . . . 1 . . . . 1 . . . . . . . . . . . . Core 4 | . . . . 1 . . 1 . . . . . . 1 . . 1 . . . . . . . Reactor 17 | . . . . . . . . . . . . . . . . . . 2 . 1 8 4 1 1 Propulsion 71 | 2 . . 1 2 3 . 2 5 1 1 . 3 4 2 . . 1 4 1 11 16 8 2 2 Treads 34 | 2 . . 1 2 3 . 2 5 1 1 . 3 4 2 . . 1 4 1 2 . . . . Leg 22 | . . . . . . . . . . . . . . . . . . . . 8 14 . . . Wheel 1 | . . . . . . . . . . . . . . . . . . . . 1 . . . . Hover 13 | . . . . . . . . . . . . . . . . . . . . . 2 7 2 2 Flight 1 | . . . . . . . . . . . . . . . . . . . . . . 1 . . Utility 113 | 2 2 . 1 2 2 1 10 4 4 5 2 3 6 4 1 3 . 5 4 9 14 17 7 5 Device 25 | 1 . . . . . . 1 . . . . . 1 . . 1 . 1 . 2 4 6 5 3 Storage 4 | 1 2 . . . 1 . . . . . . . . . . . . . . . . . . . Processor 14 | . . . . . . 1 1 . . . . . 1 . . . . . 1 1 . 7 1 1 Hackware 44 | . . . . . . . 5 3 3 5 1 3 3 4 . 2 . 4 1 1 9 . . . Protection 24 | . . . 1 2 1 . 3 1 1 . 1 . 1 . 1 . . . 2 3 1 4 1 1 Artifact 2 | . . . . . . . . . . . . . . . . . . . . 2 . . . . Weapon 77 | 2 2 1 1 5 5 . 5 7 . . . 7 4 2 1 2 3 5 2 3 8 7 3 2 Energy Gun 7 | . . . . . . . . . . . . . . . . . . . . . 1 3 3 . Energy Cannon 5 | . . . . . . . . . . . . . . . . . 1 . . . 3 . . 1 Ballistic Gun 23 | 2 1 1 1 3 2 . 4 3 . . . . . . . . . . . . 4 2 . . Ballistic Cannon 8 | . . . . . 2 . . 1 . . . 1 1 . . . 1 1 . 1 . . . . Launcher 17 | . 1 . . 2 1 . 1 1 . . . 3 1 1 . 1 . 1 1 1 . 1 . 1 Special Weapon 17 | . . . . . . . . 2 . . . 3 2 1 1 1 1 3 1 1 . 1 . . Impact Weapon . | . . . . . . . . . . . . . . . . . . . . . . . . . Slashing Weapon . | . . . . . . . . . . . . . . . . . . . . . . . . . Piercing Weapon . | . . . . . . . . . . . . . . . . . . . . . . . . . Special Melee Weapon . | . . . . . . . . . . . . . . . . . . . . . . . . . Unidentified Prototypes 13 | . . . . 1 . . 1 . . . . . . . . . . . . 4 . 3 4 . Parts Lost 108 | . . . . 3 4 . 1 10 . . . 6 2 1 . . 1 5 2 20 19 13 2 19 Power 15 | . . . . 1 . . 1 . . . . . . 1 . . . . . 3 4 2 . 3 Propulsion 33 | . . . . . 1 . . 5 . . . 2 1 . . . . 3 1 8 4 4 . 4 Utility 38 | . . . . 2 2 . . 2 . . . 1 1 . . . . 2 . 6 7 4 1 10 Weapon 22 | . . . . . 1 . . 3 . . . 3 . . . . 1 . 1 3 4 3 1 2 Highest Loss Streak 12 | . . . . 2 3 . 1 4 . . . 2 1 1 . . 1 2 2 11 9 7 1 12 To Critical Strikes 2 | . . . . . . . . . . . . . . . . . 1 . . . 1 . . . Average Slot Usage (%) 84 | . 100 100 85 93 81 83 90 89 92 92 91 87 83 78 77 82 77 74 77 83 68 69 87 67 Engine 3 | . 14 14 11 5 . . . 7 7 7 6 6 5 . . . . . . . . . . . Core 3 | . . . . 5 11 11 5 . . . . . . 4 5 5 9 7 4 3 . . . . Reactor 1 | . . . . . . . . . . . . . . . . . . 1 4 3 5 6 7 5 Treads 19 | . 28 28 26 32 29 33 29 24 30 30 25 23 19 16 17 17 15 13 17 9 . . . . Leg 1 | . . . . . . . . . . . . . . . . . . . . 7 20 . . . Device 2 | . 14 14 11 5 . . 5 . . . . . 1 . . 2 5 2 . 1 6 2 10 13 Storage 6 | . 14 14 11 11 11 11 7 7 7 7 6 6 5 5 5 5 5 5 4 3 . . . . Processor 9 | . . . . . . 6 13 15 15 15 13 13 11 11 11 11 10 10 9 6 . 8 17 14 Hackware 15 | . . . . . . . . 4 12 15 19 22 20 24 23 25 21 23 24 26 19 19 13 12 Protection 2 | . . . 4 11 7 . 3 8 1 . 5 . 4 1 . . . . 2 3 1 3 5 1 Ballistic Gun 4 | . 27 28 22 21 13 . 6 8 . . . . . . . . . . . . 4 6 . . Ballistic Cannon 5 | . . . . . 8 22 15 4 7 7 6 5 4 5 5 5 4 5 4 3 . . . . Special Weapon 3 | . . . . . . . . 5 7 7 6 5 4 4 5 4 5 4 3 3 . 2 4 1 Naked Turns 31 | . . . . . . . . . . . . . . . . . . . . 5 26 . . . Heaviest Build 168 | 15 51 51 55 55 97 97 110 123 121 120 123 125 125 134 138 139 145 143 168 167 67 68 61 84 Greatest Support 200 | 40 40 40 60 60 60 60 80 88 88 98 98 80 167 167 147 147 190 200 139 93 155 82 95 83 Greatest Overweight (x) 10 | . 1 1 1 . 1 1 1 5 1 1 1 1 1 1 . . . 2 3 10 . 2 . 1 Average Overweight (x) . | . . 1 . . . 1 1 1 1 1 1 1 . . . . . . 1 5 . . . . Largest Inventory Capacity 25 | 8 20 20 20 20 25 25 25 25 25 25 25 25 25 25 25 25 25 25 25 25 5 5 5 5 Average Capacity 22 | 7 13 20 20 20 20 25 25 25 25 25 25 25 25 25 25 25 25 25 25 24 5 5 5 5 Most Carried 25 | 6 13 19 20 20 21 21 25 25 25 25 25 25 25 25 25 25 25 25 25 25 5 5 5 5 Average Carried 20 | 3 9 17 19 19 19 21 22 24 24 24 24 21 23 24 24 24 24 23 22 23 3 2 4 2 Final Capacity 25 | 8 20 20 20 20 25 25 25 25 25 25 25 25 25 25 25 25 25 25 25 5 5 5 5 5 Final Carried 25 | 5 13 19 19 19 21 21 25 25 24 25 25 25 24 25 25 25 23 23 25 5 2 5 5 . Class Distribution -------------------- 53% | Botlord-Mutant 16% | Mutant 15% | Bothacker-Mutant 5% | Scavenger-Mutant Dominant Class ---------------- Mutant | -10/Materials Mutant | -10/Mines Mutant | -9/Materials Mutant | -9/Storage Mutant | -9/Garrison Mutant | -9/Recycling Commander-Skirmisher | -7/Factory Bothacker-Mutant | -7/Garrison Bothacker-Mutant | -7/Factory Botlord-Mutant | -7/Garrison Botlord-Mutant | -6/Factory Botlord-Mutant | -6/Garrison Botlord-Mutant | -5/Factory Botlord-Mutant | -5/Garrison Botlord-Mutant | -5/Factory Botlord-Mutant | -5/Garrison Botlord-Mutant | -4/Factory Botlord-Mutant | -4/Garrison Botlord-Mutant | -3/Research Botlord-Mutant | -3/Quarantine Scavenger-Tank | -3/Garrison Botlord-Mutant | -2/Research Scavenger-Mutant | -2/Testing Mutant | -1/Access Resources | -11 -10 -10 -9 -9 -9 -9 -7 -7 -7 -7 -6 -6 -5 -5 -5 -5 -4 -4 -3 -3 -3 -2 -2 -1 ----------- Run | Scr Mat Min Mat Sto Gar Rec Fac Gar Fac Gar Fac Gar Fac Gar Fac Gar Fac Gar Res Qua Gar Res Tes Acc Matter Collected 12635 | 306 208 60 48 164 237 326 330 928 195 544 106 521 826 1146 187 988 334 1667 334 1527 688 693 135 137 Remotely 777 | 94 208 60 48 72 . . . . . . . . 295 . . . . . . . . . . . Salvage Created 10177 | 120 354 . 53 550 490 37 657 859 91 174 25 295 209 429 101 587 492 1031 310 903 825 1295 . 290 Parts 498 | 5 27 . 7 32 33 9 45 46 6 11 2 25 10 21 6 38 18 21 11 29 30 51 . 15 Haulers Intercepted 5 | . 1 . . 1 . . 2 . . . . . . . . . . . . 1 . . . . Recyclers Shooed 7 | . . . . 2 . . 1 . . . . . . . . . 3 . . 1 . . . . Parts Field Recycled . | . . . . . . . . . . . . . . . . . . . . . . . . . Retrieved Matter . | . . . . . . . . . . . . . . . . . . . . . . . . . Parts Self-Destructed . | . . . . . . . . . . . . . . . . . . . . . . . . . Prevented . | . . . . . . . . . . . . . . . . . . . . . . . . . Kills | -11 -10 -10 -9 -9 -9 -9 -7 -7 -7 -7 -6 -6 -5 -5 -5 -5 -4 -4 -3 -3 -3 -2 -2 -1 ------- Run | Scr Mat Min Mat Sto Gar Rec Fac Gar Fac Gar Fac Gar Fac Gar Fac Gar Fac Gar Res Qua Gar Res Tes Acc Combat Hostiles Destroyed 264 | . 7 . 3 8 17 2 13 25 3 9 1 19 10 17 4 20 11 25 4 19 15 16 . 16 Melee 1 | . . . . . . . . . . . . . . . . . . . . . 1 . . . Guns 62 | . 5 . 3 6 9 . . 19 . . . . . . . . . . . . 9 8 . 3 Cannons 126 | . . . . . 4 2 10 2 3 9 1 4 6 12 4 9 10 21 4 19 5 . . 1 AOE 66 | . 2 . . 2 4 . 3 4 . . . 15 4 5 . 11 . 4 . . . . . 12 Classes Destroyed 20 | 2 4 . . 3 . 2 2 1 1 1 . 1 1 1 . . 1 . . . . . . . Worker 5 | . . . . 1 . . 1 . 1 . 1 . . . . . . . . . . . . 1 Builder 8 | . . . . . . 1 7 . . . . . . . . . . . . . . . . . Tunneler 6 | 1 2 . . . . . . . . . . . 1 . . . 1 . 1 . . . . . Hauler 5 | . 1 . . 1 . . 2 . . . . . . . . . . . . 1 . . . . Recycler 5 | 1 . . . 2 . . . . . . . . . . . . . . 1 1 . . . . Mechanic 1 | . . . . . . . . . 1 . . . . . . . . . . . . . . . Operator 1 | . . . . . . . . . . . . . . . . . 1 . . . . . . . Drone 2 | . . . . . . 2 . . . . . . . . . . . . . . . . . . Watcher 11 | . 2 . . 1 . . 2 . . . . . . . . . . . 2 . . 3 . 1 Swarmer 80 | . 2 . 3 . 4 . 1 13 1 2 . 15 4 7 . 4 . 6 1 . 5 2 . 10 Cutter 10 | . . . . . . . . . . 2 . . . . . 4 . 2 . . . . . 2 Saboteur 2 | . . . . . . . . . . . . . . 1 . . . . . . 1 . . . Grunt 95 | . 5 . . 5 11 . 5 7 . 3 . 2 2 6 . 7 7 17 1 7 4 4 . 2 Brawler 4 | . . . . . . . 1 2 . . . . . 1 . . . . . . . . . . Duelist 7 | . . . . 1 1 . 2 . 1 . . . . 1 . 1 . . . . . . . . Sentry 13 | . . . . 2 1 . 1 1 . . . . . . . 1 . 1 1 . 1 3 . 1 Specialist 3 | . . . . . . . . 2 . . . . . . . . . 1 . . . . . . Hunter 12 | . . . . . . . . . . . . . 1 1 1 1 1 . 1 1 3 2 . . Programmer 35 | . . . . . . . 3 . 1 2 1 2 3 1 3 3 3 . . 7 . 5 . 1 Behemoth 3 | . . . . . . . . . . . . 1 . . . . . 1 . . 1 . . . Quarantine Guard 4 | . . . . . . . . . . . . . . . . . . . . 4 . . . . Best Kill Streak 12 | 2 4 . 3 6 4 1 12 8 1 6 1 7 5 5 1 12 4 4 2 3 3 3 . 5 Combat Bots Only 12 | . 2 . 3 4 4 1 4 8 1 6 1 7 4 5 1 12 3 4 2 3 3 3 . 4 Max Kills in Single Turn 7 | 1 3 . 2 2 2 1 5 2 1 1 1 5 5 3 1 7 1 2 2 1 1 1 . 4 Gunslinging 1 | . . . 1 . . . . . . . . . . . . . . . . . . . . 1 Exploded 7 | . 2 . . 1 2 . 1 2 . . . 5 4 3 . 7 . 2 . . . . . 4 Melee 1 | . . . . . . . . . . . . . . . . . . . . . 1 . . . Uniques/NPCs Destroyed . | . . . . . . . . . . . . . . . . . . . . . . . . . Combat | -11 -10 -10 -9 -9 -9 -9 -7 -7 -7 -7 -6 -6 -5 -5 -5 -5 -4 -4 -3 -3 -3 -2 -2 -1 -------- Run | Scr Mat Min Mat Sto Gar Rec Fac Gar Fac Gar Fac Gar Fac Gar Fac Gar Fac Gar Res Qua Gar Res Tes Acc Damage Taken 23511 | . 289 . 59 294 781 . 668 1391 245 359 83 993 955 674 967 575 479 2045 831 2876 4222 1661 650 2414 Core 2805 | . 52 . 8 45 64 . 35 76 8 34 16 86 91 45 25 53 43 184 62 541 665 199 50 423 Absorbed by Shields 1419 | . . . . . . . . 101 . 28 . 64 . 57 . 73 151 511 . . 50 . . 384 Reduced by Siege Mode 118 | . . . . . . . . . . . . . . . 34 . . 84 . . . . . . Redirected to Core 124 | . . . . . . . . . . . . . . . . . . . . 124 . . . . Redirected to Shielding 112 | . . . . . . . 4 . . . . . . . . . . . . . . 108 . . Regen/Repaired (Parts) 694 | . . . . . . . . . 114 . . . 312 . 268 . . . . . . . . . Core Remaining (%) 73 | 100 . 79 . . . 70 . . . 78 . 88 . . . 78 . 80 . . 2 . 82 . Volleys Fired 1047 | 6 35 . 3 32 38 8 26 81 17 39 6 49 58 70 27 59 48 151 30 85 91 62 5 21 Largest 3 | 2 2 . 2 2 2 2 3 3 1 1 1 1 1 1 1 1 1 1 1 1 3 3 2 2 Hottest 208 | 40 40 . 46 46 96 96 124 96 83 83 83 83 83 83 83 83 88 83 83 83 208 150 176 153 Shots Fired 1402 | 12 68 . 6 58 69 16 66 128 18 40 6 49 58 70 27 61 48 152 30 85 176 124 7 28 Gun 571 | 12 66 . 6 56 42 . 18 93 . . . . . . . . . . . . 140 120 4 14 Cannon 524 | . . . . . 23 16 45 11 6 21 5 24 31 37 20 22 39 96 18 65 36 . . 9 Launcher 35 | . 2 . . 2 4 . 3 3 . . . 9 1 2 . 3 . 1 . . . . . 5 Special 272 | . . . . . . . . 21 12 19 1 16 26 31 7 36 9 55 12 20 . 4 3 . Kinetic 921 | 12 66 . 6 56 65 16 63 104 6 21 5 24 31 37 20 22 33 96 18 65 101 54 . . Thermal 93 | . . . . . . . . . . . . . . . . . . . . . 75 . 4 14 Explosive 35 | . 2 . . 2 4 . 3 3 . . . 9 1 2 . 3 . 1 . . . . . 5 Electromagnetic 81 | . . . . . . . . . . . . . . . . . 6 . . . . 66 . 9 Robot Hit Streak 41 | 8 17 . 4 41 15 3 21 38 16 22 7 11 18 23 13 26 16 31 19 32 25 24 4 8 Robot Miss Streak 6 | 1 2 . 2 1 1 4 3 2 1 1 . 2 6 5 1 6 1 3 1 2 4 4 1 1 Penetration Max 1 | . . . . . . . . . . . . . . . . . 1 1 1 . . . . . Secondary Targets 12 | . . . 2 2 1 . . 5 . . . . . . . . . . . . . 1 . 1 Max Gunslinging Chain 1 | . . . 1 1 1 . . 1 . . . . . . . . . . . . . 1 . 1 Capacitor 9 | . . . . . . . . . . . . . . . . . . . . . . . . 9 Shots Hit Robots 1089 | 10 53 . 4 50 41 6 43 108 16 33 5 34 51 55 22 49 42 115 26 71 127 99 6 23 Core Hits 498 | 3 22 . 3 28 24 3 47 48 4 4 2 26 14 23 4 47 14 46 9 22 44 39 . 22 Critical Kills . | . . . . . . . . . . . . . . . . . . . . . . . . . Critical Parts Destroyed 3 | . . . . . 1 . . 1 . . . . . . . . . . . . 1 . . . Critical Strikes 46 | . . . . . 1 . 3 3 1 . . . 2 4 1 . 6 8 3 3 5 6 . . Burn 4 | . . . . . . . . . . . . . . . . . . . . . 4 . . . Destroy 3 | . . . . . 1 . . 1 . . . . . . . . . . . . 1 . . . Blast 33 | . . . . . . . 3 2 1 . . . 2 4 1 . 6 8 3 3 . . . . Corrupt 6 | . . . . . . . . . . . . . . . . . . . . . . 6 . . Melee Attacks . | . . . . . . . . . . . . . . . . . . . . . . . . . Impact . | . . . . . . . . . . . . . . . . . . . . . . . . . Slashing . | . . . . . . . . . . . . . . . . . . . . . . . . . Piercing . | . . . . . . . . . . . . . . . . . . . . . . . . . Sneak Attacks . | . . . . . . . . . . . . . . . . . . . . . . . . . Combat Hostiles . | . . . . . . . . . . . . . . . . . . . . . . . . . Follow-up Attacks . | . . . . . . . . . . . . . . . . . . . . . . . . . Damage Inflicted 42033 | 126 794 . 82 762 1050 208 1927 2283 474 1142 353 2706 2576 2424 1229 2503 2338 4726 1220 4417 3202 2254 76 3161 Guns 8240 | 126 660 . 82 578 408 . 263 1569 . . . . . . . . . . . . 1878 2254 76 346 Cannons 25315 | . . . . . 365 208 736 328 474 1142 353 1318 2160 2091 1229 1307 2338 4115 1220 4417 1324 . . 190 Explosions 8478 | . 134 . . 184 277 . 928 386 . . . 1388 416 333 . 1196 . 611 . . . . . 2625 Melee . | . . . . . . . . . . . . . . . . . . . . . . . . . Ramming . | . . . . . . . . . . . . . . . . . . . . . . . . . Kinetic 29611 | 126 660 . 82 578 773 208 999 1897 474 1142 353 1318 2160 2091 1229 1307 2097 4115 1220 4417 1387 978 . . Thermal 2237 | . . . . . . . . . . . . . . . . . . . . . 1815 . 76 346 Explosive 8327 | . 134 . . 184 277 . 777 386 . . . 1388 416 333 . 1196 . 611 . . . . . 2625 Electromagnetic 1858 | . . . . . . . 151 . . . . . . . . . 241 . . . . 1276 . 190 Impact . | . . . . . . . . . . . . . . . . . . . . . . . . . Slashing . | . . . . . . . . . . . . . . . . . . . . . . . . . Piercing . | . . . . . . . . . . . . . . . . . . . . . . . . . Highest Corruption 6 | . . . . . . . 1 3 4 5 . . 2 2 3 4 2 2 2 4 4 6 1 1 Average Corruption 2 | . . . . . . . 1 1 3 4 . . 1 2 2 3 1 2 1 3 4 3 1 1 Corruption Purged . | . . . . . . . . . . . . . . . . . . . . . . . . . Corruption Blocked . | . . . . . . . . . . . . . . . . . . . . . . . . . Effects 239 | . . . . . . . 2 19 23 31 . . 2 15 10 25 3 30 3 44 20 12 . . Message Errors 49 | . . . . . . . . 4 3 7 . . . 5 1 8 . 6 . 9 4 2 . . Matter Fused 57 | . . . . . . . . 8 5 8 . . 1 4 2 5 . 6 . 14 2 2 . . Heat Flow Errors 34 | . . . . . . . . 2 4 4 . . . 2 2 2 . 4 . 7 3 4 . . Energy Discharges 38 | . . . . . . . 1 2 6 6 . . 1 . 1 5 3 2 2 3 5 1 . . Parts Rejected 2 | . . . . . . . . . . . . . . . . . . . . 1 1 . . . Data Loss (minor) 33 | . . . . . . . . 1 2 4 . . . . 4 2 . 6 . 8 5 1 . . Data Loss (major) 13 | . . . . . . . . 2 2 1 . . . 2 . . . 2 1 2 . 1 . . Misfires 5 | . . . . . . . . . 1 1 . . . . . 2 . 1 . . . . . . Alerts 6 | . . . . . . . . . . . . . . 2 . 1 . 3 . . . . . . Weapon Failures 2 | . . . . . . . 1 . . . . . . . . . . . . . . 1 . . Overload Shots . | . . . . . . . . . . . . . . . . . . . . . . . . . Overflow Damage 3475 | . . . . . . . 55 20 71 388 6 265 471 207 374 52 251 172 . 562 53 . . 528 Projectiles 2729 | . . . . . . . . . 71 388 6 139 455 207 374 51 251 172 . 562 53 . . . Explosions 746 | . . . . . . . 55 20 . . . 126 16 . . 1 . . . . . . . 528 Melee . | . . . . . . . . . . . . . . . . . . . . . . . . . Knockbacks 96 | . . . . . 3 3 3 . 1 5 3 2 11 5 10 . 13 18 3 16 . . . . Impact . | . . . . . . . . . . . . . . . . . . . . . . . . . Kinetic 86 | . . . . . 3 3 3 . 1 3 2 2 10 5 8 . 12 17 3 14 . . . . Secondary 10 | . . . . . . . . . . 2 1 . 1 . 2 . 1 1 . 2 . . . . Self-Inflicted Damage 338 | . . . . . . . 45 20 . . . 91 24 44 . 105 . 9 . . . . . . Shots 16 | . . . . . . . 2 2 . . . 2 1 2 . 6 . 1 . . . . . . Rammed . | . . . . . . . . . . . . . . . . . . . . . . . . . Targets Rammed . | . . . . . . . . . . . . . . . . . . . . . . . . . Kicked . | . . . . . . . . . . . . . . . . . . . . . . . . . Crushed . | . . . . . . . . . . . . . . . . . . . . . . . . . Highest Temperature 473 | . 2 . . 33 324 66 84 159 237 213 26 172 94 241 149 210 138 178 303 473 305 427 8 103 Average Temperature 91 | . 2 . . 12 88 24 30 45 66 56 14 56 28 48 40 38 41 39 113 204 102 142 6 52 Received Heat Transfer 3822 | . 177 . . 126 291 . 168 426 36 149 27 142 177 171 18 80 30 502 75 132 673 90 180 152 Effects 25 | . . . . . . . . . . . . . . . . . . . 2 12 1 10 . . Shutdowns 4 | . . . . . . . . . . . . . . . . . . . . 2 . 2 . . Energy Bleed 8 | . . . . . . . . . . . . . . . . . . . 1 4 1 2 . . Interference 7 | . . . . . . . . . . . . . . . . . . . 1 1 . 5 . . Matter Decay 1 | . . . . . . . . . . . . . . . . . . . . 1 . . . . Damage (minor) 3 | . . . . . . . . . . . . . . . . . . . . 2 . 1 . . Damage (major) 2 | . . . . . . . . . . . . . . . . . . . . 2 . . . . Siege Activations 3 | . . . . . . . . . . . . . . . 1 . . 2 . . . . . . Total Turns 82 | . . . . . . . . . . . . . . . 16 . . 66 . . . . . . Longest Duration 43 | . . . . . . . . . . . . . . . 16 . . 43 . . . . . . Robots Corrupted 10 | . . . . . . . . . . . . . . . . . 1 . . . . 9 . . Combat Hostiles 9 | . . . . . . . . . . . . . . . . . 1 . . . . 8 . . Parts Fried 19 | . . . . . . . . . . 1 . . . . . . 1 . . . . 17 . . Impact Corruptions 4 | . . . . . . . . . . 1 . . 1 . 2 . . . . . . . . . Robots Melted . | . . . . . . . . . . . . . . . . . . . . . . . . . Combat Hostiles . | . . . . . . . . . . . . . . . . . . . . . . . . . Parts Melted 5 | . . . . . . . . . . . . . . . . . . 1 1 . 3 . . . Heat Transferred 3071 | . . . . . . . . . . . . . . . . . . . . . 2516 . 111 444 Parts Sabotaged 8 | . . . . . . . . . . . . . . . . . . . . . 8 . . . Parts Stolen . | . . . . . . . . . . . . . . . . . . . . . . . . . Parts Stripped . | . . . . . . . . . . . . . . . . . . . . . . . . . Power Chain Reactions . | . . . . . . . . . . . . . . . . . . . . . . . . . Missiles Intercepted . | . . . . . . . . . . . . . . . . . . . . . . . . . Alert | -11 -10 -10 -9 -9 -9 -9 -7 -7 -7 -7 -6 -6 -5 -5 -5 -5 -4 -4 -3 -3 -3 -2 -2 -1 ------- Run | Scr Mat Min Mat Sto Gar Rec Fac Gar Fac Gar Fac Gar Fac Gar Fac Gar Fac Gar Res Qua Gar Res Tes Acc Peak Influence 1576 | 10 152 15 170 282 898 361 1164 1576 731 1039 549 1492 816 857 537 930 472 1297 646 231 257 185 39 466 Initial 1002 | . 5 . . 61 160 345 1002 597 716 107 472 297 678 24 389 118 423 144 634 47 . 115 12 15 Average 483 | 3 47 5 85 105 647 278 953 1039 311 587 463 984 361 545 397 569 251 737 200 43 166 86 25 183 Maximum Alert Level 4 | . . . . 1 3 1 4 4 3 3 2 4 3 3 2 3 2 4 2 1 1 . . 2 Low Security (%) 32 | 100 100 100 100 77 1 . . . 47 11 . . 9 6 8 15 40 7 59 97 48 100 100 62 Level 1 18 | . . . . 22 4 100 . . 25 15 15 20 61 22 53 1 40 18 35 2 51 . . 30 Level 2 21 | . . . . . 79 . . 32 . 41 84 1 25 48 38 53 18 24 4 . . . . 7 Level 3 17 | . . . . . 14 . 94 13 26 31 . 30 3 22 . 29 . 21 . . . . . . Level 4 10 | . . . . . . . 5 54 . . . 47 . . . . . 28 . . . . . . Level 5 . | . . . . . . . . . . . . . . . . . . . . . . . . . High Security . | . . . . . . . . . . . . . . . . . . . . . . . . . Max Security . | . . . . . . . . . . . . . . . . . . . . . . . . . Squads Dispatched 45 | . 1 . 2 2 . . 5 . 5 . 1 . 5 . 2 . 2 . 4 7 . 3 1 5 Investigation 8 | . 1 . 1 . . . . . . . . . . . . . 1 . 1 2 . . . 2 Extermination 18 | . . . . . . . 3 . 3 . . . 3 . 2 . 1 . 1 3 . 2 . . Reinforcement 15 | . . . 1 1 . . 2 . 1 . . . 2 . . . . . 2 2 . 1 1 2 Assault 1 | . . . . . . . . . . . . . . . . . . . . . . . . 1 Garrison 3 | . . . . 1 . . . . 1 . 1 . . . . . . . . . . . . . Intercept . | . . . . . . . . . . . . . . . . . . . . . . . . . Searches Triggered 2 | . . . . . . . 2 . . . . . . . . . . . . . . . . . Construction Impeded 3 | . . . . . . . 2 . . . . . . . . . . . . . . . 1 . Haulers Reinforced 3 | . . . . . . . . . . . . . 1 . . . . . . 1 . 1 . . Active Scanning Responses . | . . . . . . . . . . . . . . . . . . . . . . . . . Cargo Convoy Interrupts . | . . . . . . . . . . . . . . . . . . . . . . . . . Stealth | -11 -10 -10 -9 -9 -9 -9 -7 -7 -7 -7 -6 -6 -5 -5 -5 -5 -4 -4 -3 -3 -3 -2 -2 -1 --------- Run | Scr Mat Min Mat Sto Gar Rec Fac Gar Fac Gar Fac Gar Fac Gar Fac Gar Fac Gar Res Qua Gar Res Tes Acc Distress Signals 13 | . . . . 2 . . 2 . . . 1 . . . . . 3 . 1 2 . . 1 1 Communications Jammed 101 | . . . . . . . . . . . 50 . 38 . . . 4 . 9 . . . . . Distress Signals 101 | . . . . . . . . . . . 50 . 38 . . . 4 . 9 . . . . . Times Spotted 604 | . 14 1 5 12 19 15 28 37 10 24 12 46 29 43 11 38 17 62 21 40 45 31 8 36 Peak Tracking Total 14 | . 3 . 4 3 6 6 5 6 3 4 5 6 5 9 3 13 3 11 6 3 14 10 6 9 Tactical Retreats 29 | . . . . . 1 . . 1 . . . 4 . . 2 . . 3 1 3 6 3 . 5 Traps | -11 -10 -10 -9 -9 -9 -9 -7 -7 -7 -7 -6 -6 -5 -5 -5 -5 -4 -4 -3 -3 -3 -2 -2 -1 ------- Run | Scr Mat Min Mat Sto Gar Rec Fac Gar Fac Gar Fac Gar Fac Gar Fac Gar Fac Gar Res Qua Gar Res Tes Acc Traps Triggered 27 | . 1 . . 2 . . 2 8 . 2 . 2 . 1 1 . . 3 . . 3 2 . . Indirectly . | . . . . . . . . . . . . . . . . . . . . . . . . . Trap Hack Attempts . | . . . . . . . . . . . . . . . . . . . . . . . . . Triggered . | . . . . . . . . . . . . . . . . . . . . . . . . . Disarmed . | . . . . . . . . . . . . . . . . . . . . . . . . . Reprogrammed 6 | . 6 . . . . . . . . . . . . . . . . . . . . . . . Reused 1 | . . . . . . . . . . . . . . . . . . 1 . . . . . . Traps Extracted . | . . . . . . . . . . . . . . . . . . . . . . . . . Installed 3 | . . . . . . . . . . . . . . 2 . . . 1 . . . . . . Triggered 2 | . . . . . . . . . . . . . . . . . . 1 . . . . . 1 Most Traps Carried 4 | . . . . . . . . . . . . 4 4 4 1 1 . 2 1 1 . . . . Machines | -11 -10 -10 -9 -9 -9 -9 -7 -7 -7 -7 -6 -6 -5 -5 -5 -5 -4 -4 -3 -3 -3 -2 -2 -1 ---------- Run | Scr Mat Min Mat Sto Gar Rec Fac Gar Fac Gar Fac Gar Fac Gar Fac Gar Fac Gar Res Qua Gar Res Tes Acc Machines Disabled 67 | . . . . . 2 1 7 3 . 3 1 7 1 6 5 4 4 11 . 7 2 . . 3 Max in Single Turn 3 | . . . . . 1 1 3 1 . 1 . 1 1 1 . 1 3 1 . 1 1 . . 1 Garrison Access 1 | . . . . . . . . . . . . . . . . . . . . . . . . 1 Garrison Relay 27 | . . . . . 2 . . 3 . 3 . 4 . 4 . 4 . 5 . . 2 . . . Machines Sabotaged . | . . . . . . . . . . . . . . . . . . . . . . . . . Garrisons Compromised . | . . . . . . . . . . . . . . . . . . . . . . . . . Overloaded Fab Kills . | . . . . . . . . . . . . . . . . . . . . . . . . . Hacking | -11 -10 -10 -9 -9 -9 -9 -7 -7 -7 -7 -6 -6 -5 -5 -5 -5 -4 -4 -3 -3 -3 -2 -2 -1 --------- Run | Scr Mat Min Mat Sto Gar Rec Fac Gar Fac Gar Fac Gar Fac Gar Fac Gar Fac Gar Res Qua Gar Res Tes Acc Machines Accessed 77 | . 7 . 3 4 3 2 7 4 4 3 1 2 4 3 3 3 4 4 3 7 1 1 1 3 Terminals 62 | . 6 . 3 3 3 2 4 4 2 3 . 2 2 3 2 3 2 4 3 6 1 1 . 3 Fabricators 3 | . . . . . . . 2 . . . . . . . . . . . . . . . 1 . Repair Stations 2 | . . . . . . . . . . . . . 1 . . . 1 . . . . . . . Recycling Units 2 | . 1 . . . . . . . 1 . . . . . . . . . . . . . . . Scanalyzers . | . . . . . . . . . . . . . . . . . . . . . . . . . Garrison Access 8 | . . . . 1 . . 1 . 1 . 1 . 1 . 1 . 1 . . 1 . . . . Total Hacks 179 | . 23 . 12 13 8 7 26 7 6 6 1 3 8 4 7 6 8 6 6 11 2 1 2 6 Successful 92 | . 15 . 9 8 1 2 20 2 3 3 1 2 6 3 3 1 2 3 . 4 1 . 1 2 Failed 87 | . 8 . 3 5 7 5 6 5 3 3 . 1 2 1 4 5 6 3 6 7 1 1 1 4 Catastrophic 22 | . 1 . . . . 1 1 1 1 . . . 1 1 2 . 2 2 2 4 1 1 . 1 Database Lockouts . | . . . . . . . . . . . . . . . . . . . . . . . . . Manual 56 | . 7 . 11 7 1 . 10 . 2 . . . 1 . 4 . 5 . 3 3 . . 2 . Terminals 147 | . 21 . 12 11 8 7 13 7 3 6 . 3 5 4 6 6 4 6 6 10 2 1 . 6 Fabricators 14 | . . . . . . . 12 . . . . . . . . . . . . . . . 2 . Repair Stations 5 | . . . . . . . . . . . . . 2 . . . 3 . . . . . . . Recycling Units 4 | . 2 . . . . . . . 2 . . . . . . . . . . . . . . . Scanalyzers . | . . . . . . . . . . . . . . . . . . . . . . . . . Garrison Access 9 | . . . . 2 . . 1 . 1 . 1 . 1 . 1 . 1 . . 1 . . . . Terminal Hacks 55 | . 10 . 4 6 1 2 6 2 1 3 . 2 3 3 2 1 1 3 . 2 1 . . 2 Record 1 | . . . . . . . . . . . . . . . . . . . . . . . . 1 Part Schematic 1 | . . . . . . . 1 . . . . . . . . . . . . . . . . . Robot Schematic 1 | . . . . . . . 1 . . . . . . . . . . . . . . . . . Robot Analysis 2 | . 1 . . . . . . . 1 . . . . . . . . . . . . . . . Prototype ID Bank 3 | . 2 . 1 . . . . . . . . . . . . . . . . . . . . . Open Door 5 | . . . . 2 . . . 1 . 1 . . . . . . . 1 . . . . . . Open DSF 1 | . . . . . . . . . . . . . . . 1 . . . . . . . . . Branch Access Points 3 | . . . 1 . . . . . . . . . . . 1 . . . . . . . . 1 Emergency Access Points 5 | . . . . . . . . . . 1 . 1 . 1 . 1 . 1 . . . . . . Machine Index 2 | . 1 . 1 . . . . . . . . . . . . . . . . . . . . . Terminal Index 6 | . 1 . . 1 . 1 1 . . . . . 1 . . . . . . 1 . . . . Garrison Index 3 | . . . . 1 . . 1 . . . . . . . . . 1 . . . . . . . Unreport Threat 8 | . 3 . . 2 . 1 . . . . . . 2 . . . . . . . . . . . Locate Traps 1 | . 1 . . . . . . . . . . . . . . . . . . . . . . . Reprogram Traps 1 | . 1 . . . . . . . . . . . . . . . . . . . . . . . Hauler Manifests 1 | . . . . . . . . . . . . . . . . . . . . 1 . . . . Zone Layout 3 | . . . 1 . . . 2 . . . . . . . . . . . . . . . . . Garrison Registry 3 | . . . . . 1 . . 1 . 1 . . . . . . . . . . . . . . Patrol Navigation 4 | . . . . . . . . . . . . 1 . 1 . . . 1 . . 1 . . . Security Stations 1 | . . . . . . . . . . . . . . 1 . . . . . . . . . . Fabricator Hacks 10 | . . . . . . . 10 . . . . . . . . . . . . . . . . . Load Schematic 4 | . . . . . . . 4 . . . . . . . . . . . . . . . . . Build 6 | . . . . . . . 6 . . . . . . . . . . . . . . . . . Repair Station Hacks 2 | . . . . . . . . . . . . . 2 . . . . . . . . . . . Scan Component 1 | . . . . . . . . . . . . . 1 . . . . . . . . . . . Repair 1 | . . . . . . . . . . . . . 1 . . . . . . . . . . . Recycling Unit Hacks . | . . . . . . . . . . . . . . . . . . . . . . . . . Scanalyzer . | . . . . . . . . . . . . . . . . . . . . . . . . . Garrison Access Hacks 8 | . . . . 1 . . 1 . 1 . 1 . 1 . 1 . 1 . . 1 . . . . Unlock Access 8 | . . . . 1 . . 1 . 1 . 1 . 1 . 1 . 1 . . 1 . . . . Unauthorized Hacks 16 | . 5 . 4 1 . . 3 . 1 . . . . . . . . . . 1 . . 1 . Terminals 11 | . 3 . 4 1 . . 2 . . . . . . . . . . . . 1 . . . . Track 1 | . . . 1 . . . . . . . . . . . . . . . . . . . . . Botnet 8 | . 2 . 2 1 . . 2 . . . . . . . . . . . . 1 . . . . Operators 2 | . 1 . 1 . . . . . . . . . . . . . . . . . . . . . Fabricators 2 | . . . . . . . 1 . . . . . . . . . . . . . . . 1 . Prioritize 1 | . . . . . . . 1 . . . . . . . . . . . . . . . . . Fabnet 1 | . . . . . . . . . . . . . . . . . . . . . . . 1 . Repair Stations . | . . . . . . . . . . . . . . . . . . . . . . . . . Recycling Units 3 | . 2 . . . . . . . 1 . . . . . . . . . . . . . . . Reject 2 | . 1 . . . . . . . 1 . . . . . . . . . . . . . . . Recyclers 1 | . 1 . . . . . . . . . . . . . . . . . . . . . . . Scanalyzers . | . . . . . . . . . . . . . . . . . . . . . . . . . Garrison Access . | . . . . . . . . . . . . . . . . . . . . . . . . . Data Cores Recovered 1 | . . . . . . . . . . . . . . . . . 1 . . . . . . . Used 1 | . . . . . . . . . . . . . . . . . 1 . . . . . . . Hacking Detections 64 | . 6 . 3 3 3 2 7 3 3 2 1 1 2 1 3 3 3 2 3 7 1 1 1 3 Full Trace Events 19 | . 1 . 1 . 2 1 . 2 . 1 . . . 1 . 2 1 1 1 2 1 . . 2 Feedback Events 2 | . . . . . . . . 2 . . . . . . . . . . . . . . . . Corruption 2 | . . . . . . . . 2 . . . . . . . . . . . . . . . . Feedback Blocked . | . . . . . . . . . . . . . . . . . . . . . . . . . Robot Schematics Acquired 2 | . . . . . . . 1 . . . . . . . . . . . . 1 . . . . Robots Built 11 | . . . . . . . 11 . . . . . . . . . . . . . . . . . Authchips 5 | . . . . . . . 5 . . . . . . . . . . . . . . . . . Time 110 | . . . . . . . 110 . . . . . . . . . . . . . . . . . Total Robot Build Rating 44 | . . . . . . . 44 . . . . . . . . . . . . . . . . . Part Schematics Acquired 2 | . . . . . . . 1 . . . . . . . . . . . . 1 . . . . Parts Built 1 | . . . . . . . 1 . . . . . . . . . . . . . . . . . Authchips . | . . . . . . . . . . . . . . . . . . . . . . . . . Time 42 | . . . . . . . 42 . . . . . . . . . . . . . . . . . Total Part Build Rating 4 | . . . . . . . 4 . . . . . . . . . . . . . . . . . Parts Repaired 1 | . . . . . . . . . . . . . 1 . . . . . . . . . . . Time 22 | . . . . . . . . . . . . . 22 . . . . . . . . . . . Parts Recycled . | . . . . . . . . . . . . . . . . . . . . . . . . . Recycled Matter . | . . . . . . . . . . . . . . . . . . . . . . . . . Retrieved Matter . | . . . . . . . . . . . . . . . . . . . . . . . . . Retrieved Components . | . . . . . . . . . . . . . . . . . . . . . . . . . Parts Scanalyzed . | . . . . . . . . . . . . . . . . . . . . . . . . . Part Schematics Acquired . | . . . . . . . . . . . . . . . . . . . . . . . . . Parts Damaged . | . . . . . . . . . . . . . . . . . . . . . . . . . Bothacking | -11 -10 -10 -9 -9 -9 -9 -7 -7 -7 -7 -6 -6 -5 -5 -5 -5 -4 -4 -3 -3 -3 -2 -2 -1 ------------ Run | Scr Mat Min Mat Sto Gar Rec Fac Gar Fac Gar Fac Gar Fac Gar Fac Gar Fac Gar Res Qua Gar Res Tes Acc Used RIF Installer 10 | . . . . . 1 . . 2 . 2 . 1 . 1 . 1 . 1 . . 1 . . . Hotswap 1 | . . . . . . . . . . 1 . . . . . . . . . . . . . . Code Merge 2 | . . . . . . . . . . 1 . 1 . . . . . . . . . . . . Threat Obfuscator 2 | . . . . . . . . . . . . . . 1 . . . . . . 1 . . . Signal Jammer 1 | . . . . . . . . 1 . . . . . . . . . . . . . . . . Zone Cloak 1 | . . . . . . . . . . . . . . . . . . 1 . . . . . . Structural Interface 1 | . . . . . . . . 1 . . . . . . . . . . . . . . . . Autoassimilate 1 | . . . . . . . . . . . . . . . . 1 . . . . . . . . Robots Hacked 118 | . . . . . . . . 5 4 5 1 9 9 13 4 9 6 21 7 14 4 3 3 1 Non-combat 14 | . . . . . . . . . 3 . 1 . 4 . 1 . 1 . 2 2 . . . . Combat 104 | . . . . . . . . 5 1 5 . 9 5 13 3 9 5 21 5 12 4 3 3 1 Autoassimilated 19 | . . . . . . . . . . . . . . . . 2 2 2 1 5 4 2 . 1 Robot Hacks Applied 114 | . . . . . . . . 5 7 5 1 9 15 13 4 7 4 19 10 11 . 1 3 . parse_system 5 | . . . . . . . . . . . . . 1 . . 1 . 1 . 1 . . 1 . no_distress 1 | . . . . . . . . . . . . . 1 . . . . . . . . . . . start_evac 1 | . . . . . . . . . . . . . 1 . . . . . . . . . . . drop_inventory 3 | . . . . . . . . . . . 1 . 1 . . . . . . 1 . . . . purge_threat 11 | . . . . . . . . . 2 . . . 4 . . . . . 4 1 . . . . reprogram_traps 1 | . . . . . . . . . 1 . . . . . . . . . . . . . . . map_route 1 | . . . . . . . . . . . . . . . . . . . 1 . . . . . find_scanalyzer 1 | . . . . . . . . . . . . . . . . . . . . . . . 1 . disable_scanner 1 | . . . . . . . . . . . . . . . . . . . . 1 . . . . locate_prototypes 1 | . . . . . . . . . . . . . . . . . . . . 1 . . . . overload_power 1 | . . . . . . . . . . . . . . . 1 . . . . . . . . . amplify_resonance 16 | . . . . . . . . 2 . . . . . 4 . 1 1 5 1 1 . . 1 . disable_weapons 2 | . . . . . . . . . . 1 . . . 1 . . . . . . . . . . reboot_system 1 | . . . . . . . . . . . . . 1 . . . . . . . . . . . overwrite_iff 13 | . . . . . . . . . . . . 1 . 2 . 2 2 4 1 1 . . . . formatsys_low 8 | . . . . . . . . . 3 . . . 2 . 1 . . . 1 1 . . . . formatsys_high 47 | . . . . . . . . 3 1 4 . 8 4 6 2 3 1 9 2 3 . 1 . . Relay Couplers Released 116 | . . . . . 8 . . 14 . 15 . 16 . 16 . 19 . 20 . . 6 . . 2 Machine Destruction 116 | . . . . . 8 . . 14 . 15 . 16 . 16 . 19 . 20 . . 6 . . 2 Attached 39 | . . . . . . . . 3 3 5 1 3 3 4 . 2 . 4 1 1 9 . . . Merged Code Value 474 | . . . . . . . . . . 20 . 58 . 78 . 180 . 138 . . . . . . Fabnet Peak Effective % 3 | . . . . . . . . . . . . . . . . . . . . . . . . 3 Robots Rewired 45 | . . . . . . . . 6 . 4 . . . 3 . 15 1 13 . . 3 . . . Allies Hacked 7 | . . . . . . . 1 . . 1 . . 1 . . . . . 1 3 . . . . Hacks Repelled . | . . . . . . . . . . . . . . . . . . . . . . . . . Allies | -11 -10 -10 -9 -9 -9 -9 -7 -7 -7 -7 -6 -6 -5 -5 -5 -5 -4 -4 -3 -3 -3 -2 -2 -1 -------- Run | Scr Mat Min Mat Sto Gar Rec Fac Gar Fac Gar Fac Gar Fac Gar Fac Gar Fac Gar Res Qua Gar Res Tes Acc Total Allies 151 | . . 3 . . . . 12 9 4 10 . 9 6 11 3 22 6 30 5 10 7 3 . 1 Largest Group 17 | . . 3 3 3 . . 12 5 8 11 11 6 6 3 3 17 15 11 10 4 3 2 . 1 Highest-Rated Group 611 | . . 40 40 40 . . 412 148 220 376 376 182 191 107 107 611 582 436 434 188 137 236 . 53 Highest-Rated Ally 178 | . . 16 16 16 . . 37 39 39 73 73 55 49 49 49 85 56 56 64 145 48 178 . 53 Total Orders 6 | . . . . . . . . . 2 2 . . 1 . 1 . . . . . . . . . STAY 1 | . . . . . . . . . . 1 . . . . . . . . . . . . . . FOLLOW 1 | . . . . . . . . . . 1 . . . . . . . . . . . . . . AID 4 | . . . . . . . . . 2 . . . 1 . 1 . . . . . . . . . Ally Attacks 845 | . . . 8 26 . . 44 27 32 52 53 67 62 60 14 84 31 94 58 66 41 23 . 3 Total Damage 24458 | . . . 110 251 . . 1571 455 745 2038 1870 1755 1740 978 804 1890 649 3156 1778 1910 1381 1297 . 80 Kills 149 | . . . 2 3 . . 15 4 7 17 12 11 10 7 4 11 3 19 8 7 7 2 . . Allies Corrupted 5 | . . . . . . . . 1 . . . . 2 . . . 2 . . . . . . . Allies Melted 1 | . . . . . . . . . . . . . . 1 . . . . . . . . . . Intel | -11 -10 -10 -9 -9 -9 -9 -7 -7 -7 -7 -6 -6 -5 -5 -5 -5 -4 -4 -3 -3 -3 -2 -2 -1 ------- Run | Scr Mat Min Mat Sto Gar Rec Fac Gar Fac Gar Fac Gar Fac Gar Fac Gar Fac Gar Res Qua Gar Res Tes Acc Robot Analysis Total 2 | . 1 . . . . . . . 1 . . . . . . . . . . . . . . . Derelict Logs Recovered 1 | . . 1 . . . . . . . . . . . . . . . . . . . . . . Drone Launches . | . . . . . . . . . . . . . . . . . . . . . . . . . Drone Recoveries . | . . . . . . . . . . . . . . . . . . . . . . . . . Exploration | -11 -10 -10 -9 -9 -9 -9 -7 -7 -7 -7 -6 -6 -5 -5 -5 -5 -4 -4 -3 -3 -3 -2 -2 -1 ------------- Run | Scr Mat Min Mat Sto Gar Rec Fac Gar Fac Gar Fac Gar Fac Gar Fac Gar Fac Gar Res Qua Gar Res Tes Acc Turns Passed 25898 | 108 841 1001 195 257 1404 319 1387 1850 1514 1467 550 1988 1179 1458 872 1286 794 2189 684 2177 913 979 136 350 Spaces Moved 11823 | 47 390 415 90 95 661 123 476 603 590 561 222 750 582 741 407 652 397 924 234 789 542 905 195 432 Core 61 | 1 . . . . . . . . . . . . . . . . . . . 10 50 . . . Treads 9007 | 46 390 415 90 95 661 123 476 603 590 561 222 750 582 741 407 652 397 924 234 48 . . . . Legs 735 | . . . . . . . . . . . . . . . . . . . . 354 309 72 . . Wheels 377 | . . . . . . . . . . . . . . . . . . . . 377 . . . . Hover 1643 | . . . . . . . . . . . . . . . . . . . . . 183 833 195 432 Flight . | . . . . . . . . . . . . . . . . . . . . . . . . . Fastest Speed 40 | 50 160 240 160 160 160 240 240 240 240 238 238 240 162 163 170 170 166 163 240 50 50 40 44 44 Average Speed 186 | 157 181 240 202 160 184 240 240 265 241 238 238 241 165 169 170 170 166 189 257 241 100 73 45 62 Slowest Speed 560 | 160 240 240 240 160 240 240 240 560 242 242 243 243 243 250 170 170 166 320 400 330 120 260 52 131 Overloaded Moves . | . . . . . . . . . . . . . . . . . . . . . . . . . Propulsion Burnouts . | . . . . . . . . . . . . . . . . . . . . . . . . . Robots Hopped . | . . . . . . . . . . . . . . . . . . . . . . . . . Cave-ins Triggered . | . . . . . . . . . . . . . . . . . . . . . . . . . Exploration Rate (%) 47 | 4 71 83 15 36 77 38 21 91 17 70 12 96 22 92 18 91 18 98 11 82 52 26 25 18 Regions Visited 24 Branch Regions 5 Pre-discovered Areas 1 | . . 1 . . . . . . . . . . . . . . . . . . . . . . Known Exits Taken 12 | . . . 1 1 . . 1 . 1 . 1 . 1 . 1 . 1 . 1 1 . 1 1 . Unknown Exits Taken 4 | 1 1 1 . . . 1 . . . . . . . . . . . . . . . . . . Scrap Searched 2 | . . 2 . . . . . . . . . . . . . . . . . . . . . . Spaces Dug 8 | . . . . . . . 1 . . . 1 . 1 . 2 3 . . . . . . . . Terrain Destroyed 367 | . 19 . . 12 22 7 27 1 . 4 1 123 12 42 7 13 4 24 3 8 6 . . 32 Melee . | . . . . . . . . . . . . . . . . . . . . . . . . . Projectile 81 | . . . . . . 7 7 1 . 4 1 4 6 6 7 2 4 15 3 8 6 . . . AOE 286 | . 19 . . 12 22 . 20 . . . . 119 6 36 . 11 . 9 . . . . . 32 Terrain Rammed . | . . . . . . . . . . . . . . . . . . . . . . . . . Walls Destroyed . | . . . . . . . . . . . . . . . . . . . . . . . . . Machines Disabled . | . . . . . . . . . . . . . . . . . . . . . . . . . Actions | -11 -10 -10 -9 -9 -9 -9 -7 -7 -7 -7 -6 -6 -5 -5 -5 -5 -4 -4 -3 -3 -3 -2 -2 -1 --------- Run | Scr Mat Min Mat Sto Gar Rec Fac Gar Fac Gar Fac Gar Fac Gar Fac Gar Fac Gar Res Qua Gar Res Tes Acc Total 14329 | 66 456 420 98 144 777 131 664 735 663 654 234 871 734 871 555 773 474 1193 283 963 745 1099 236 490 Wait 871 | 1 14 . . . 45 . 128 10 44 33 3 46 73 24 113 36 19 87 10 43 23 78 16 25 Move 11807 | 46 389 414 89 95 660 122 476 602 590 560 222 749 582 740 407 651 397 923 233 789 541 904 194 432 Hop . | . . . . . . . . . . . . . . . . . . . . . . . . . Pick Up 139 | 6 10 5 2 5 13 . 12 11 3 9 1 10 3 13 3 2 2 7 2 8 8 2 2 . Fast Attach 140 | 6 . . . 2 2 1 8 5 1 . 1 . 4 3 1 1 1 8 2 16 31 32 9 6 Attach 76 | 1 . . 2 3 2 . 9 6 1 . 1 8 3 2 1 . 3 4 2 7 11 4 2 4 Detach 18 | . . . . . 1 . 2 . 1 . . . . . . . 1 . 1 3 2 6 . 1 Swap 70 | . 4 1 1 5 6 . 2 5 3 6 . 6 7 4 . 4 1 4 3 2 4 . 2 . Drop 102 | . 4 . 1 2 10 . 1 7 3 7 . 3 4 13 3 2 2 6 . 10 6 11 6 1 Fire 1047 | 6 35 . 3 32 38 8 26 81 17 39 6 49 58 70 27 59 48 151 30 85 91 62 5 21 Melee . | . . . . . . . . . . . . . . . . . . . . . . . . . Ram . | . . . . . . . . . . . . . . . . . . . . . . . . . Kick . | . . . . . . . . . . . . . . . . . . . . . . . . . Crush . | . . . . . . . . . . . . . . . . . . . . . . . . . Escape Stasis 10 | . . . . . . . . 8 . . . . . . . . . 2 . . . . . . Rewire 46 | . . . . . . . . . . . . . . . . 18 . . . . 28 . . . Trap 3 | . . . . . . . . . . . . . . 2 . . . 1 . . . . . . Miscellaneous . | . . . . . . . . . . . . . . . . . . . . . . . . . Route ------- -11/Scrapyard -10/Materials (discovered 3 exits: *Mat x2 / [*Min]) -10/Mines (discovered 2 exits: *Mat x2) -9/Materials (discovered 2 exits: Min / *Sto) -9/Storage -9/Garrison (discovered 3 exits: *Rec x3) -9/Recycling -7/Factory (discovered 3 exits: *Fac / *Low / Gar) -7/Garrison (discovered 4 exits: *Fac x4) -7/Factory (discovered 2 exits: *Fac / Gar) -7/Garrison (discovered 3 exits: *Fac x3) -6/Factory -6/Garrison (discovered 3 exits: *Fac x3) -5/Factory (discovered 2 exits: *Fac / Gar) -5/Garrison (discovered 4 exits: *Fac x4) -5/Factory (discovered 3 exits: Upp x2 / Gar) -5/Garrison (discovered 3 exits: *Fac x3) -4/Factory -4/Garrison (discovered 3 exits: *Res x3) -3/Research -3/Quarantine (discovered 2 exits: *Res / Gar) -3/Garrison -2/Research (discovered 2 exits: *Acc / *Tes) -2/Testing -1/Access (discovered 1 exit: Com) History --------- Turn | Location | Event 19 | -11/Scrapyard | Discovered new exit (range 16) 109 | -11/Scrapyard | Entered Materials 295 | -10/Materials | Discovered new exit (range 6) 300 | -10/Materials | Build established: Mutant 588 | -10/Materials | Discovered new exit (range 15) 770 | -10/Materials | Discovered new exit (range 10) 950 | -10/Materials | Entered Mines 962 | -10/Mines | Met a Derelict bent on vengeance 1001 | -10/Mines | Joined a pair of Derelicts in attacking an 0b10 outpost 1386 | -10/Mines | Learned location of Storage (-9) 1549 | -10/Mines | Discovered new exit (range 5) 1813 | -10/Mines | Found a damaged Exp. Sensor Array with a note attached 1820 | -10/Mines | Found Prototype Device 1898 | -10/Mines | Discovered new exit (range 11) 1922 | -10/Mines | Assisted by bots powering up and referring to "LRC-V3" 1951 | -10/Mines | Entered Materials 1951 | -9/Materials | Accompanied by 3 allies 1951 | -9/Materials | Evolved 2 slots: Propulsion x1, Utility x1 2098 | -9/Materials | Identified exit to Mines 2098 | -9/Materials | Identified exit to Storage 2146 | -9/Materials | Entered Storage 2146 | -9/Storage | Accompanied by 3 allies 2190 | -9/Storage | Found Prototype Launcher 2191 | -9/Storage | Identified Scatter Rocket Array 2333 | -9/Storage | Garrison activated, responded to threat 2403 | -9/Storage | Identified exit to Garrison 2403 | -9/Storage | Entered Garrison 2456 | -9/Garrison | Triggered checkpoint 2484 | -9/Garrison | Garrison Relay disabled 2614 | -9/Garrison | Triggered checkpoint 2626 | -9/Garrison | Triggered checkpoint 2740 | -9/Garrison | Installed Relay Interface Framework 2778 | -9/Garrison | Garrison Relay disabled 2826 | -9/Garrison | Discovered new exit (range 10) 2945 | -9/Garrison | Build established: Scavenger-Mutant 2960 | -9/Garrison | Discovered new exit (range 64) 2960 | -9/Garrison | Discovered new exit (range 47) 2960 | -9/Garrison | Discovered new exit (range 36) 3005 | -9/Garrison | Spotted B-75 Beast 3007 | -9/Garrison | Spotted B-75 Beast 3074 | -9/Garrison | Lost 3 parts (1n2u) 3328 | -9/Garrison | Build established: Mutant 3668 | -9/Garrison | Triggered checkpoint 3807 | -9/Garrison | Entered Recycling 3845 | -9/Recycling | Spotter reported a threat 3847 | -9/Recycling | Spotter reported a threat 3847 | -9/Recycling | Spotter reported a threat 3852 | -9/Recycling | Spotter reported a threat 3900 | -9/Recycling | Spotter reported a threat 3900 | -9/Recycling | Spotter reported a threat 3906 | -9/Recycling | Spotter reported a threat 3906 | -9/Recycling | Spotter reported a threat 3928 | -9/Recycling | Spotter reported a threat 3946 | -9/Recycling | Spotter reported a threat 3953 | -9/Recycling | Spotter reported a threat 3959 | -9/Recycling | Spotter reported a threat 3974 | -9/Recycling | Spotter reported a threat 3974 | -9/Recycling | Spotter reported a threat 3995 | -9/Recycling | Spotter reported a threat 3999 | -9/Recycling | Spotter reported a threat 4006 | -9/Recycling | Spotter reported a threat 4027 | -9/Recycling | Spotter reported a threat 4027 | -9/Recycling | Spotter reported a threat 4071 | -9/Recycling | Discovered new exit (range 15) 4075 | -9/Recycling | Spotter reported a threat 4126 | -9/Recycling | Entered Factory 4126 | -7/Factory | Evolved 4 slots: Propulsion x1, Utility x2, Weapon x1 4526 | -7/Factory | Search patrols dispatched 4529 | -7/Factory | Discovered new exit (range 12) 4572 | -7/Factory | Fabricated L-41 Fighter (x3) 4594 | -7/Factory | Fabricated P-60 Hacker (x2) 4617 | -7/Factory | Fabricated P-60 Hacker (x2) 4640 | -7/Factory | Fabricated P-60 Hacker (x2) 4663 | -7/Factory | Fabricated P-60 Hacker (x2) 4687 | -7/Factory | Identified exit to Factory 4740 | -7/Factory | Hacker 4g assimilated hostile O-24 Administrator 4926 | -7/Factory | Search patrols dispatched 5064 | -7/Factory | Fabricated Remote Datajack (x1) 5271 | -7/Factory | Discovered new exit (range 8) 5287 | -7/Factory | Identified exit to Lower Caves 5513 | -7/Factory | Identified exit to Garrison 5513 | -7/Factory | Entered Garrison 5548 | -7/Garrison | Expanded RIF knowledge: Structural Interface 5605 | -7/Garrison | Lost 4 parts (3n1w) 5674 | -7/Garrison | Triggered checkpoint 5727 | -7/Garrison | Expanded RIF knowledge: Signal Jamming 5772 | -7/Garrison | Garrison Relay disabled 5832 | -7/Garrison | Triggered checkpoint 5890 | -7/Garrison | Discovered new exit (range 3) 5895 | -7/Garrison | Identified exit to Factory 6079 | -7/Garrison | Build established: Bothacker-Mutant 6150 | -7/Garrison | Triggered checkpoint 6271 | -7/Garrison | Destroyed 8 combat bots 6294 | -7/Garrison | Triggered checkpoint 6351 | -7/Garrison | Garrison Relay disabled 6569 | -7/Garrison | Discovered exit to Factory (range 9) 6642 | -7/Garrison | Discovered exit to Factory (range 61) 6642 | -7/Garrison | Discovered exit to Factory (range 13) 6642 | -7/Garrison | Discovered exit to Factory (range 35) 6642 | -7/Garrison | Discovered exit to Factory (range 54) 6760 | -7/Garrison | Triggered checkpoint 6895 | -7/Garrison | Garrison Relay disabled 7363 | -7/Garrison | Entered Factory 7363 | -7/Factory | Accompanied by 5 allies 8741 | -7/Factory | Discovered exit to Factory (range 8) 8811 | -7/Factory | Garrison activated, responded to threat 8874 | -7/Factory | Identified exit to Garrison 8877 | -7/Factory | Entered Garrison 8877 | -7/Garrison | Accompanied by 6 allies 9042 | -7/Garrison | Triggered checkpoint 9072 | -7/Garrison | Garrison Relay disabled 9163 | -7/Garrison | Discovered exit to Factory (range 70) 9163 | -7/Garrison | Discovered exit to Factory (range 62) 9163 | -7/Garrison | Discovered exit to Factory (range 38) 9246 | -7/Garrison | Triggered checkpoint 9274 | -7/Garrison | Triggered checkpoint 9296 | -7/Garrison | Triggered checkpoint 9473 | -7/Garrison | Expanded RIF knowledge: Code Merge 9610 | -7/Garrison | Found embedded Infiltrators 9632 | -7/Garrison | Triggered checkpoint 9635 | -7/Garrison | Garrison Relay disabled 9775 | -7/Garrison | Build established: Botlord-Mutant 10060 | -7/Garrison | Triggered checkpoint 10098 | -7/Garrison | Expanded RIF knowledge: Hotswap 10152 | -7/Garrison | Garrison Relay disabled 10344 | -7/Garrison | Entered Factory 10344 | -6/Factory | Accompanied by 11 allies 10344 | -6/Factory | Evolved 2 slots: Utility x2 10817 | -6/Factory | Garrison activated, responded to threat 10891 | -6/Factory | Identified exit to Garrison 10894 | -6/Factory | Entered Garrison 10894 | -6/Garrison | Accompanied by 6 allies 10987 | -6/Garrison | Spotted B-75 Beast 11017 | -6/Garrison | Destroyed B-75 Beast 11046 | -6/Garrison | Found Relay Coupler [Proto] 11051 | -6/Garrison | Found Relay Coupler [Proto] 11063 | -6/Garrison | P-60 Hacker assimilated allied Machinist 4b 11236 | -6/Garrison | Triggered checkpoint 11486 | -6/Garrison | Triggered checkpoint 11486 | -6/Garrison | Triggered checkpoint 11509 | -6/Garrison | Destroyed 7 combat bots 11552 | -6/Garrison | Discovered new exit (range 10) 11589 | -6/Garrison | Identified exit to Factory 11680 | -6/Garrison | Triggered checkpoint 11853 | -6/Garrison | Expanded RIF knowledge: Code Merge 11896 | -6/Garrison | Triggered checkpoint 11930 | -6/Garrison | Garrison Relay disabled 12107 | -6/Garrison | Discovered exit to Factory (range 19) 12338 | -6/Garrison | Triggered checkpoint 12414 | -6/Garrison | Triggered checkpoint 12439 | -6/Garrison | Garrison Relay disabled 12498 | -6/Garrison | Garrison Relay disabled 12586 | -6/Garrison | Discovered exit to Factory (range 11) 12882 | -6/Garrison | Entered Factory 12882 | -5/Factory | Accompanied by 4 allies 12882 | -5/Factory | Evolved 2 slots: Propulsion x1, Utility x1 13190 | -5/Factory | P-70 Sage assimilated allied Guardian 5a 13627 | -5/Factory | Repaired Hvy. Linear Accelerator 13851 | -5/Factory | Discovered new exit (range 5) 13857 | -5/Factory | Identified exit to Factory 14061 | -5/Factory | Identified exit to Garrison 14061 | -5/Factory | Entered Garrison 14143 | -5/Garrison | Garrison Relay disabled 14390 | -5/Garrison | Triggered checkpoint 14396 | -5/Garrison | Garrison Relay disabled 14506 | -5/Garrison | Triggered checkpoint 14607 | -5/Garrison | Garrison Relay disabled 14662 | -5/Garrison | Discovered new exit (range 12) 14674 | -5/Garrison | Learned Factory security intel 14991 | -5/Garrison | Garrison Relay disabled 15024 | -5/Garrison | Triggered checkpoint 15116 | -5/Garrison | Discovered new exit (range 8) 15186 | -5/Garrison | Triggered checkpoint 15214 | -5/Garrison | Triggered checkpoint 15303 | -5/Garrison | Expanded RIF knowledge: Threat Obfuscation 15334 | -5/Garrison | Discovered new exit (range 12) 15351 | -5/Garrison | Identified exit to Factory 15370 | -5/Garrison | Triggered checkpoint 15389 | -5/Garrison | Discovered exit to Factory (range 3) 15519 | -5/Garrison | Entered Factory 15519 | -5/Factory | Accompanied by 3 allies 16210 | -5/Factory | Identified exit to Upper Caves 16391 | -5/Factory | Identified exit to Garrison 16391 | -5/Factory | Entered Garrison 16391 | -5/Garrison | Accompanied by 1 ally 16521 | -5/Garrison | Spotted B-75 Beast 16558 | -5/Garrison | Garrison Relay disabled 16599 | -5/Garrison | Assimilated Beast 6a with formatsys_high 16606 | -5/Garrison | Triggered checkpoint 16607 | -5/Garrison | Triggered checkpoint 16611 | -5/Garrison | Triggered checkpoint 16652 | -5/Garrison | Destroyed 12 combat bots 16730 | -5/Garrison | Triggered checkpoint 16750 | -5/Garrison | Expanded RIF knowledge: Autoassimilate 16772 | -5/Garrison | Garrison Relay disabled 16802 | -5/Garrison | Heavy support dispatched to Factory 16842 | -5/Garrison | Discovered exit to Factory (range 13) 17102 | -5/Garrison | Triggered checkpoint 17206 | -5/Garrison | Triggered checkpoint 17252 | -5/Garrison | Garrison Relay disabled 17309 | -5/Garrison | Discovered exit to Factory (range 5) 17317 | -5/Garrison | Heavy support dispatched to Factory 17597 | -5/Garrison | Garrison Relay disabled 17627 | -5/Garrison | Discovered exit to Factory (range 9) 17677 | -5/Garrison | Entered Factory 17677 | -4/Factory | Accompanied by 13 allies 17677 | -4/Factory | Evolved 2 slots: Power x1, Propulsion x1 18471 | -4/Factory | Identified exit to Garrison 18471 | -4/Factory | Entered Garrison 18520 | -4/Garrison | Triggered checkpoint 18571 | -4/Garrison | Expanded RIF knowledge: Zone Cloak 18588 | -4/Garrison | Garrison Relay disabled 18655 | -4/Garrison | Rescued a captive Derelict 18656 | -4/Garrison | Rescued a captive Derelict 18757 | -4/Garrison | Spotted B-86 Titan 18779 | -4/Garrison | Destroyed B-86 Titan 18854 | -4/Garrison | Triggered checkpoint 18916 | -4/Garrison | Garrison Relay disabled 18938 | -4/Garrison | Triggered checkpoint 19010 | -4/Garrison | Discovered new exit (range 2) 19012 | -4/Garrison | Identified exit to Research 19263 | -4/Garrison | Triggered checkpoint 19386 | -4/Garrison | Triggered checkpoint 19535 | -4/Garrison | Garrison Relay disabled 19569 | -4/Garrison | Triggered checkpoint 19595 | -4/Garrison | Garrison Relay disabled 19817 | -4/Garrison | Discovered exit to Research (range 3) 19914 | -4/Garrison | Triggered checkpoint 19987 | -4/Garrison | Discovered exit to Research (range 10) 20000 | -4/Garrison | Triggered checkpoint 20045 | -4/Garrison | Garrison Relay disabled 20660 | -4/Garrison | Entered Research 20660 | -3/Research | Accompanied by 9 allies 20660 | -3/Research | Evolved 2 slots: Utility x2 20965 | -3/Research | Found Gamma Bomb Array 21076 | -3/Research | P-80 Master assimilated allied Veteran 7c 21315 | -3/Research | Discovered new exit (range 10) 21341 | -3/Research | Identified exit to Quarantine 21344 | -3/Research | Entered Quarantine 21496 | -3/Quarantine | Build established: Scavenger-Mutant 21583 | -3/Quarantine | Found Prototype Launcher 21583 | -3/Quarantine | Identified Tactical Quantum Warhead 21762 | -3/Quarantine | Found Alien Artifact 21823 | -3/Quarantine | Identified Core Reset Matrix 21836 | -3/Quarantine | Found Hpw. Transdimensional Reconstructor 21848 | -3/Quarantine | Found Hpw. Transdimensional Reconstructor 21999 | -3/Quarantine | Found Alien Artifact 21999 | -3/Quarantine | Identified Phase Redirector 22024 | -3/Quarantine | Build established: Botlord-Mutant 22327 | -3/Quarantine | Found Alien Artifact 22327 | -3/Quarantine | Identified Subatomic Replicator 22339 | -3/Quarantine | P-80 Master assimilated allied Veteran 8b 22623 | -3/Quarantine | Discovered new exit (range 13) 22699 | -3/Quarantine | Cryocooling Duct disabled 22699 | -3/Quarantine | Cryocooling Duct disabled 22714 | -3/Quarantine | Ambient heat levels rising (+40) 22714 | -3/Quarantine | Non-combat units ordered to evacuate 22714 | -3/Quarantine | Combat units ordered to evacuate 22814 | -3/Quarantine | Quarantine Guard activated 22886 | -3/Quarantine | Spotted Quarantine Guard 22889 | -3/Quarantine | Assimilated Quarantine Guard with formatsys_high 22895 | -3/Quarantine | Spotted Quarantine Guard 22909 | -3/Quarantine | Destroyed Quarantine Guard 22919 | -3/Quarantine | Spotted Quarantine Guard 22933 | -3/Quarantine | Destroyed Quarantine Guard 22956 | -3/Quarantine | Lost 3 parts (1n2u) 23246 | -3/Quarantine | Spotted Quarantine Guard 23261 | -3/Quarantine | Destroyed Quarantine Guard 23386 | -3/Quarantine | Spotted Quarantine Guard 23441 | -3/Quarantine | Destroyed Quarantine Guard 23466 | -3/Quarantine | Spotted Quarantine Guard 23482 | -3/Quarantine | Spotted Quarantine Guard 23516 | -3/Quarantine | Released all parts (8) 23521 | -3/Quarantine | Identified exit to Garrison 23521 | -3/Quarantine | Entered Garrison 23546 | -3/Garrison | Lost 11 parts (2p4n3u2w) 23576 | -3/Garrison | Spotted B-86 Titan 23612 | -3/Garrison | Spotted B-86 Titan 23652 | -3/Garrison | Core integrity fell below 50% 23684 | -3/Garrison | Triggered checkpoint 23699 | -3/Garrison | Garrison Relay disabled 23700 | -3/Garrison | Triggered checkpoint 23729 | -3/Garrison | Expanded RIF knowledge: Threat Obfuscation 24032 | -3/Garrison | Triggered checkpoint 24033 | -3/Garrison | Triggered checkpoint 24036 | -3/Garrison | Triggered checkpoint 24121 | -3/Garrison | Destroyed B-86 Titan 24144 | -3/Garrison | Lost 5 parts (1p4u) 24196 | -3/Garrison | Core integrity fell below 20% 24234 | -3/Garrison | Triggered checkpoint 24288 | -3/Garrison | Lost 9 parts (4n2u3w) 24352 | -3/Garrison | Garrison Relay disabled 24417 | -3/Garrison | Discovered new exit (range 15) 24434 | -3/Garrison | Entered Research 24434 | -2/Research | Evolved 2 slots: Utility x2 24589 | -2/Research | Build established: Scavenger-Gunner 24946 | -2/Research | Spotted B-90 Cyclops 25186 | -2/Research | Found Prototype Launcher 25186 | -2/Research | Identified Point Singularity Launcher 25195 | -2/Research | Discovered new exit (range 5) 25209 | -2/Research | Build established: Botlord-Mutant 25215 | -2/Research | Identified exit to Access 25380 | -2/Research | P-80 Master assimilated allied Enforcer 9a 25388 | -2/Research | Spotted B-90 Cyclops 25409 | -2/Research | Discovered new exit (range 9) 25413 | -2/Research | Identified exit to Testing 25413 | -2/Research | Entered Testing 25438 | -2/Testing | Lost 7 parts (1p3n2u1w) 25461 | -2/Testing | Spotted PY-S2988XN8AE 25546 | -2/Testing | Discovered exit to Access (range 5) 25549 | -2/Testing | Entered Access 25549 | -1/Access | Evolved 2 slots: Propulsion x2 25575 | -1/Access | Identified exit to Command 25674 | -1/Access | Lost 6 parts (1p2n2u1w) 25692 | -1/Access | Found Quantum Capacitor 25836 | -1/Access | Spotted B-99 Colossus 25899 | -1/Access | Self-destructed Last Messages --------------- 25862_ Exp. Heat Sink destroyed. 25862_ Penetrated by Slug. 25862_ Slug penetrates Wall. 25862_ Penetrated by Slug. 25862_ Slug penetrates Wall. 25865_ Antigrav Array destroyed. 25865_ Acquired 8 matter. 25866_ Adv. Force Field destroyed. 25866_ Penetrated by Slug. 25866_ Slug penetrates Wall. 25869_ Penetrated by Slug. 25870_ Critical hit (Burn: +37). 25873_ Penetrated by Slug. 25873_ Adv. Targeting Computer destroyed. 25873_ Dropped Quantum Capacitor. 25876_ U-05 Engineer builds a Wall. 25894_ ALERT: Suspicious intruders detected, dispatching Cutter reinforcements to area. 25898_ Antigrav Array destroyed. 25898_ Lyr. Medium Armor Plating destroyed. Map ----- +----------------------------------------------------+ | ?????#=#???? # """" #?????# #????? | | ?????# #?? !!]# " ? #?????# #????? | | ?????# # !]]# ????? #???? #????? | | ?????#^+ !]]# ?????? #??# ##### #????? | | ?????# # # ???????? #??#?????# #????? | | ?????# #??= ! #?????????####????????#+#????? | | ?????# #????###????????????????????????????? | | ?????#%#???????????????????????????????????? | | ######!#???????????????????????????????????? | | ##%###?????????????????????????????????? | | %* ########## ????????????????????? | | "T= ??????????????????? | | = %* "" H ?????????????????? | | % = ?????????????????? | | # [ ##+####### ?????????????????? | | = ###### #? ?????????????????? | | #????# #?# #?????????????????? | | #????# #?# #?????????????????? | | ##????# = #?# #?????????????????? | | #?????# #?# #?????????????????? | | #?????# #?# #?????????????????? | | #?????# #?# #?????????????????? | | #?????# #?# #?????????????????? | | #?????# #?# #?????? #?????????? | | #?????? #?# ### ] #?????????? | | #???????? ??# @ss Y +?????????? | | ####??????#+##+#???# ### #?????????? | | ###?????# #???# #?????? #?????????? | | # ????# ##### % #?????????????????? | | # ????# #?????????????????? | | # ???# #######;###?????????????????? | | # #### #?????#! ??????????????????? | | # + #?????# ?????????????????? | | # # #?????# ????????????????? | | ###### ##????# #??????????????? | | + + #??????????????? | | ###################### #??????????????? | | ??????????????????????#######??????????????? | | ???????????????????????????????????????????? | | ???????????????????????????????????????????? | | ???????????????????????????????????????????? | | | | | | | | | | | | | | | | | | | +----------------------------------------------------+ Best States ------------- Heat Dissipation 104 Energy Generation 45 Energy Capacity 440 Matter Stores 300 Matter Capacity 300 Sight Range 22 Terrain Scan Range 24 Terrain Scan Density 210 Cloak Strength 4 Corruption Containment 12 Armor Coverage 675 Resistance: KI 20 Resistance: TH 20 Resistance: EX 20 Resistance: EM 40 Resistance: I 20 Resistance: S 20 Resistance: P 20 Propulsion Shielding 66 Utility Shielding 33 Phase Shifting 10 Evasion (%) 68 Targeting Accuracy 14 Target Analysis 8 Core Analysis 6 Armor Integrity Analysis 40 Recoil Reduction 6 Matter Filtering 50 Offensive Hacking 10 Relay Coupler Types 6 Relay Coupler Value 284 Authchip Count 5 Item Schematics ----------------- Imp. Plasma Cutter | -7/Factory | Hacked Electron Diverter | -3/Quarantine | Archive Robot Schematics ------------------ P-60 Hacker | -7/Factory | Hacked K-01 Serf | -3/Quarantine | Archive Fabricated ------------ L-41 Fighter | x3 | -7/Factory | Preloaded, Authchip P-60 Hacker | x2 | -7/Factory | Authchip P-60 Hacker | x2 | -7/Factory | Authchip P-60 Hacker | x2 | -7/Factory | Authchip P-60 Hacker | x2 | -7/Factory | Authchip Remote Datajack | x1 | -7/Factory | Preloaded Alien Tech Used ----------------- Phase Redirector Subatomic Replicator Achievements -------------- None Challenges ------------ None Game ------ Seed DroneRagnarokPick Manual? 0 Play Time 03:47:37 Cumulative 153.0 hours Start 2022.07.13 @ 10:55:55 End 2022.07.14 @ 15:39:26 Sessions 5 Manual Loads 0 Difficulty Adventurer Special Mode None Game No. 135 Rogue 14 Adventurer 119 Explorer 2 Win Type - Total 8 Types 3/0/2/0/0/1/1/1/0 Lore% 74 Gallery% 80 Achievement% 72 Wizard Run 0 Options --------- ASCII 0 Keyboard 0 Movement Mouse Keybinds 0 Fullscreen 2 Font 24/Smallcaps Map View 76x50 Tactical HUD 1 Map Filters NONE Filters NONE Steam 1 RUN: 64c43c54-5b0b-4ab0-9200-02e501ebd141